bitfinex-derivatives/quotes_ETHF0:USTF0_20260121
["timestamp","ask_amount","ask_price","bid_price","bid_amount"]
[1768985753386,0.9368423,2963.2,2962.5,0.1455114]
[1768985753587,0.9368423,2963.1,2962.5,0.1455114]
[1768985753782,0.1689,2963.4,2962.5,0.1455114]
[1768985753983,1.27963893,2963.3,2962.5,0.1455114]
[1768985754188,0.93685431,2963.2,2962.5,0.1455114]
[1768985754379,0.93685431,2963.1,2962.5,0.1455114]
[1768985754581,0.1689,2963.4,2962.5,0.1455114]
[1768985754782,1.27966483,2963.3,2962.5,0.1455114]
[1768985755083,0.93687335,2963.2,2962.5,0.1455114]
[1768985755282,0.93687335,2963.1,2962.5,0.1455114]
[1768985755483,0.1689,2963.4,2962.5,0.1455114]
[1768985755689,1.27973448,2963.3,2962.5,0.1455114]
[1768985755882,0.93692402,2963.2,2962.5,0.1455114]
[1768985756083,0.93692402,2963.1,2962.5,0.1455114]
[1768985756282,0.1689,2963.4,2962.5,0.1455114]
[1768985756484,1.27973449,2963.3,2962.5,0.1455114]
[1768985756685,0.93692399,2963.2,2962.5,0.1455114]
[1768985756988,0.93692399,2963.1,2962.5,0.1455114]
[1768985757191,0.1689,2963.4,2962.5,0.1455114]
[1768985757487,1.27972755,2963.3,2962.5,0.1455114]
[1768985757690,0.93691894,2963.2,2962.5,0.1455114]
[1768985757986,0.93691894,2963.1,2962.5,0.1455114]
[1768985758189,0.1689,2963.4,2962.5,0.1455114]
[1768985758389,1.27976985,2963.3,2962.5,0.1455114]
[1768985758694,0.93695001,2963.2,2962.5,0.1455114]
[1768985758888,0.93695001,2963.1,2962.5,0.1455114]
[1768985759090,0.1689,2963.4,2962.5,0.1455114]
[1768985759290,1.27980495,2963.3,2962.5,0.1455114]
[1768985759482,0.9369841,2963.2,2962.5,0.1455114]
[1768985759682,0.9369841,2963.1,2962.5,0.1455114]
[1768985759880,0.1689,2963.4,2962.5,0.1455114]
[1768985760086,1.27985426,2963.3,2962.5,0.1455114]
[1768985760287,0.93701171,2963.2,2962.5,0.1455114]
[1768985760488,0.93701171,2963.1,2962.5,0.1455114]
[1768985760687,0.1689,2963.4,2962.5,0.1455114]
[1768985760885,1.27990021,2963.3,2962.5,0.1455114]
[1768985761086,0.93704524,2963.2,2962.5,0.1455114]
[1768985761285,0.93704524,2963.1,2962.5,0.1455114]
[1768985761490,0.93704524,2963.0,2962.5,0.1455114]
[1768985761690,0.1689,2963.4,2962.5,0.1455114]
[1768985761992,1.27966921,2963.3,2962.5,0.1455114]
[1768985762196,0.93680278,2963.2,2962.5,0.1455114]
[1768985762386,0.93680278,2963.1,2962.5,0.1455114]
[1768985762586,0.93680278,2963.0,2962.5,0.1455114]
[1768985762888,0.1689,2963.4,2962.5,0.1455114]
[1768985763085,1.27966245,2963.3,2962.5,0.1455114]
[1768985763296,0.93679771,2963.2,2962.5,0.1455114]
[1768985763491,0.93679771,2963.1,2962.5,0.1455114]
[1768985763691,0.1689,2963.4,2962.5,0.1455114]
[1768985763993,1.27958533,2963.3,2962.5,0.1455114]
[1768985764193,0.9367414,2963.2,2962.5,0.1455114]
[1768985764393,0.9367414,2963.1,2962.5,0.1455114]
[1768985764591,0.93674525,2963.0,2962.5,0.1455114]
[1768985764794,0.1689,2963.4,2962.5,0.1455114]
[1768985764994,1.27958944,2963.3,2962.5,0.1455114]
[1768985765198,0.93674433,2963.2,2962.5,0.1455114]
[1768985765396,0.93674433,2963.1,2962.5,0.1455114]
[1768985765693,0.93674433,2963.0,2962.5,0.1455114]
[1768985765897,0.1689,2963.4,2962.5,0.1455114]
[1768985766083,1.09528933,2963.1,2962.1,0.00420307]
[1768985766288,0.93674301,2963.0,2962.1,0.00420307]
[1768985766490,0.93674301,2962.9,2962.1,0.00420307]
[1768985766689,0.93674301,2962.8,2962.1,0.00420307]
[1768985766890,0.93674301,2962.7,2962.1,0.00420307]
[1768985767091,1.09528933,2963.1,2962.1,0.00420307]
[1768985767290,1.29173423,2963.0,2962.1,0.00927003]
[1768985767493,0.94908673,2962.9,2962.1,0.00927003]
[1768985767697,0.94908673,2962.8,2962.1,0.00927003]
[1768985767996,0.94908673,2962.7,2962.1,0.00927003]
[1768985768195,1.09528933,2963.1,2962.1,0.00927003]
[1768985768393,1.29133698,2963.0,2962.1,0.00927003]
[1768985768594,0.94884125,2962.9,2962.1,0.00927003]
[1768985768897,0.94884125,2962.8,2962.1,0.00927003]
[1768985769100,0.94884125,2962.7,2962.1,0.00927003]
[1768985769285,1.09528933,2963.1,2962.1,0.00927003]
[1768985769490,1.29098327,2963.0,2962.1,0.00927003]
[1768985769691,0.9485393,2962.9,2962.1,0.00927003]
[1768985769886,0.9485393,2962.8,2962.1,0.00927003]
[1768985770091,0.9485393,2962.7,2962.1,0.00927003]
[1768985770296,1.09528933,2963.1,2962.1,0.00927003]
[1768985770597,1.29082254,2963.0,2962.1,0.00927003]
[1768985770796,0.94842128,2962.9,2962.1,0.00927003]
[1768985770992,0.94842128,2962.8,2962.1,0.00927003]
[1768985771192,0.94842128,2962.7,2962.1,0.00927003]
[1768985771497,1.09528933,2963.1,2962.1,0.00927003]
[1768985771697,1.29068633,2963.0,2962.1,0.00927003]
[1768985771993,2.04361055,2962.9,2962.1,0.00927003]
[1768985772199,1.09528933,2962.7,2962.1,0.00081646]
[1768985772504,0.94832122,2962.6,2962.1,0.00081646]
[1768985772794,0.94832122,2962.5,2962.1,0.00081646]
[1768985772989,1.26422933,2962.7,2962.1,0.00081646]
[1768985773192,1.26423933,2962.5,2961.2,1.23600944]
[1768985773396,1.26424933,2962.3,2961.2,0.14072011]
[1768985773594,0.94780929,2962.2,2961.2,0.14072011]
[1768985773792,0.94780929,2962.1,2961.2,1.23600944]
[1768985773994,1.81322851,2962.6,2962.0,1.09528933]
[1768985774190,0.00506696,2962.7,2962.3,0.14072011]
[1768985774989,0.16893,2962.9,2962.3,0.14072011]
[1768985776201,0.16889,2963.6,2962.7,0.14548975]
[1768985776503,1.28868296,2963.5,2962.7,0.14548975]
[1768985776700,0.16889,2963.6,2962.7,0.14548975]
[1768985776701,0.94651793,2963.4,2962.7,0.14548975]
[1768985777002,0.94651793,2963.3,2962.7,0.14548975]
[1768985777196,0.94651793,2963.2,2962.7,0.14548975]
[1768985777397,0.16889,2963.6,2962.7,0.14548975]
[1768985777598,1.28871966,2963.5,2962.7,0.14548975]
[1768985777796,0.94655436,2963.4,2962.7,0.14548975]
[1768985777998,0.94655436,2963.3,2962.7,0.14548975]
[1768985778200,0.94655436,2963.2,2962.7,0.14548975]
[1768985778403,0.16889,2963.6,2962.7,0.14548975]
[1768985778592,1.81591725,2963.9,2962.8,1.09528933]
[1768985778593,1.28876871,2963.5,2962.8,1.09528933]
[1768985778793,0.94658966,2963.4,2962.9,0.14548975]
[1768985779004,0.00268874,2963.9,2962.9,0.14548975]
[1768985779203,1.28891766,2963.8,2962.9,0.14548975]
[1768985779498,0.94670019,2963.7,2963.0,1.09528933]
[1768985779695,0.94670019,2963.6,2963.0,1.24077908]
[1768985779898,0.00268874,2963.9,2963.0,1.24077908]
[1768985780202,0.94646898,2963.8,2963.0,0.14548975]
[1768985780402,0.94646898,2963.7,2963.0,0.14548975]
[1768985780696,0.94646898,2963.6,2963.0,0.14548975]
[1768985780903,0.00268874,2963.9,2963.0,0.14548975]
[1768985781094,0.94621813,2963.8,2963.0,0.14548975]
[1768985781294,0.94621813,2963.7,2963.0,0.14548975]
[1768985781490,0.94621813,2963.6,2963.0,0.14548975]
[1768985781697,0.00268874,2963.9,2963.0,0.14548975]
[1768985781897,0.9460969,2963.8,2963.0,0.14548975]
[1768985782096,0.9460969,2963.7,2963.0,0.14548975]
[1768985782301,0.9460969,2963.6,2963.0,0.14548975]
[1768985782502,0.00268874,2963.9,2963.0,0.14548975]
[1768985782698,0.94597876,2963.8,2963.0,0.14548975]
[1768985782903,0.94597876,2963.7,2962.8,1.09528933]
[1768985783103,0.94597876,2963.6,2962.8,1.09528933]
[1768985783302,0.00268874,2963.9,2963.3,0.14548975]
[1768985783500,0.16882,2964.8,2963.8,1.24077908]
[1768985783799,0.94611776,2964.7,2964.1,1.09528933]
[1768985783998,0.16882,2964.8,2964.1,1.24077908]
[1768985784198,0.94617184,2964.7,2964.1,1.24077908]
[1768985784399,0.00384538,2964.7,2964.1,1.24316965]
[1768985784997,1.81322851,2965.3,2964.3,1.24077908]
[1768985785195,1.81322851,2965.8,2964.9,0.14548975]
[1768985785401,2.04060585,2965.7,2964.5,1.24077908]
[1768985785603,0.94531652,2965.6,2964.5,1.24077908]
[1768985785798,1.09528933,2965.7,2964.5,1.24077908]
[1768985786002,1.09528933,2965.7,2964.1,0.00239057]
[1768985786003,1.09528933,2965.3,2964.1,0.14788032]
[1768985787701,1.09528933,2965.1,2964.1,0.14788032]
[1768985787901,1.09528933,2964.5,2963.3,0.14548975]
[1768985788106,1.09528933,2964.3,2963.3,0.14548975]
[1768985788302,1.09528933,2964.5,2963.3,0.14548975]
[1768985788611,1.09528933,2964.5,2963.4,1.24077908]
[1768985789106,1.09528933,2964.5,2963.7,0.00506696]
[1768985795013,1.26411933,2964.7,2963.7,0.00506696]
[1768985795513,0.16883,2964.7,2963.9,0.14548975]
[1768985795711,1.09528933,2965.3,2964.1,0.14548975]
[1768985796011,0.94003854,2965.2,2964.1,0.14548975]
[1768985796217,0.94003854,2965.1,2964.1,0.14548975]
[1768985796413,1.09528933,2965.3,2964.1,0.14548975]
[1768985796911,1.26407933,2965.3,2964.1,0.14548975]
[1768985798816,1.09528933,2965.1,2964.1,0.14548975]
[1768985803121,0.16879,2965.3,2964.1,0.14548975]
[1768985803322,0.94046403,2965.2,2964.1,0.14548975]
[1768985803519,0.16879,2965.3,2964.1,0.14548975]
[1768985803729,0.94108646,2965.2,2964.1,0.14548975]
[1768985804020,0.16879,2965.3,2964.1,0.14548975]
[1768985804416,0.17162541,2965.7,2964.1,0.14548975]
[1768985804619,0.94171917,2965.6,2964.1,0.14548975]
[1768985804822,0.17162541,2965.7,2964.1,0.14548975]
[1768985805019,0.94158339,2965.6,2964.1,0.14548975]
[1768985805215,0.17162541,2965.7,2964.1,0.14548975]
[1768985805417,0.93803039,2965.6,2964.2,0.14724008]
[1768985805621,0.17162541,2965.7,2964.2,0.14724008]
[1768985805820,0.93788197,2965.6,2964.2,0.14724008]
[1768985806019,0.17162541,2965.7,2964.2,0.14724008]
[1768985806221,0.93786409,2965.6,2964.2,0.14724008]
[1768985806423,0.00506696,2965.2,2964.2,0.14724008]
[1768985806723,0.00506696,2965.2,2964.5,0.14724008]
[1768985807718,0.00285541,2965.7,2964.5,0.14724008]
[1768985808820,0.00285541,2965.7,2964.8,0.14724008]
[1768985809024,1.81322851,2966.7,2965.2,0.14724008]
[1768985809220,1.27968011,2966.6,2965.2,0.14724008]
[1768985809427,0.93861104,2966.5,2965.7,0.00505825]
[1768985809627,0.93861104,2966.4,2965.7,0.00505825]
[1768985809829,0.93861104,2966.3,2965.7,0.00505825]
[1768985810033,0.00300995,2966.3,2965.7,0.00792685]
[1768985810331,0.00300995,2966.3,2965.7,0.15516693]
[1768985811235,1.81322851,2967.0,2965.9,1.09398698]
[1768985811527,0.16865,2967.8,2966.4,0.14724008]
[1768985811731,0.93803105,2967.7,2966.4,0.14724008]
[1768985812027,0.93803105,2967.6,2966.4,0.14724008]
[1768985812223,0.93803105,2967.5,2966.4,0.14724008]
[1768985812427,0.93803105,2967.5,2965.8,0.14724008]
[1768985812619,0.93803105,2967.5,2966.1,0.14724008]
[1768985813021,0.93803105,2967.5,2966.4,0.14724008]
[1768985813221,0.93803105,2967.5,2966.7,0.14724008]
[1768985813430,0.00251407,2967.6,2966.7,0.14724008]
[1768985813827,1.98184851,2968.3,2966.9,1.09398698]
[1768985814129,0.93660262,2968.2,2967.3,0.00505825]
[1768985814328,0.16862,2968.3,2967.3,0.00505825]
[1768985814922,0.17218519,2968.3,2967.3,0.00505825]
[1768985815128,1.10307532,2968.2,2966.6,0.14724008]
[1768985815434,0.93445532,2968.1,2966.6,0.14724008]
[1768985815626,0.16862,2968.2,2966.6,0.14724008]
[1768985815932,0.93345234,2968.1,2966.6,0.14724008]
[1768985816128,0.16862,2968.2,2967.1,0.00505825]
[1768985819430,0.16863,2968.1,2967.1,0.00505825]
[1768985819634,0.00502922,2967.9,2965.8,0.14724008]
[1768985819836,0.16865,2967.7,2965.8,0.14724008]
[1768985820040,0.16865,2967.7,2965.9,4.1]
[1768985820234,0.16865,2967.7,2966.0,0.14724008]
[1768985820939,0.16866,2967.6,2966.6,0.00505825]
[1768985821838,0.16866,2967.6,2966.6,0.15183851]
[1768985830346,0.00502922,2967.9,2966.6,0.15183851]
[1768985830548,0.93250243,2967.8,2966.6,0.15183851]
[1768985830751,0.00502922,2967.9,2966.6,0.15183851]
[1768985831050,0.93248748,2967.8,2966.6,0.15183851]
[1768985831236,0.17366922,2967.9,2966.6,0.15183851]
[1768985831442,0.93299289,2967.8,2966.6,0.15183851]
[1768985831642,0.17366922,2967.9,2966.6,0.15183851]
[1768985831844,0.9329938,2967.8,2966.6,0.15183851]
[1768985832147,0.17366922,2967.9,2966.6,0.15183851]
[1768985832447,0.93311758,2967.8,2966.6,0.15183851]
[1768985832646,0.17366922,2967.9,2966.6,0.15183851]
[1768985832845,0.93363273,2967.8,2966.6,0.15183851]
[1768985833046,0.17366922,2967.9,2966.6,0.15183851]
[1768985833248,0.93362568,2967.8,2966.6,0.15183851]
[1768985833437,0.17366922,2967.9,2966.6,0.15183851]
[1768985833640,0.93433931,2967.8,2966.6,0.15183851]
[1768985833837,0.17366922,2967.9,2966.6,0.15183851]
[1768985834042,0.93426846,2967.8,2966.6,0.15183851]
[1768985834242,0.17366922,2967.9,2966.6,0.15183851]
[1768985834447,0.93504914,2967.8,2966.6,0.15183851]
[1768985834645,0.17366922,2967.9,2966.6,0.15183851]
[1768985834845,0.93504645,2967.8,2966.6,0.15183851]
[1768985835048,0.17366922,2967.9,2966.6,0.15183851]
[1768985835248,0.93504914,2967.8,2966.6,0.15183851]
[1768985835445,0.93504914,2967.7,2966.6,0.15183851]
[1768985835647,0.17366922,2967.9,2966.6,0.15183851]
[1768985835843,0.93568926,2967.8,2966.6,0.15183851]
[1768985836044,0.93568926,2967.7,2966.6,0.15183851]
[1768985836244,0.16867,2967.5,2966.6,0.00505825]
[1768985836445,0.93639756,2967.4,2966.6,0.00505825]
[1768985836644,0.16867,2967.5,2966.6,0.14083295]
[1768985836849,0.93639439,2967.4,2966.6,0.14083295]
[1768985837152,0.16867,2967.5,2966.6,0.14083295]
[1768985837352,0.93648818,2967.4,2966.6,0.14083295]
[1768985837549,0.16867,2967.5,2966.6,0.14083295]
[1768985837853,0.93739002,2967.4,2966.6,0.14083295]
[1768985838052,0.93739002,2967.3,2966.6,0.14083295]
[1768985838246,0.16867,2967.5,2966.6,0.14083295]
[1768985838453,0.93845035,2967.4,2966.6,0.14083295]
[1768985838648,0.93845035,2967.3,2966.7,0.1357747]
[1768985838845,1.81322851,2967.8,2966.7,0.1357747]
[1768985839053,0.93847911,2967.7,2966.7,0.1357747]
[1768985839252,0.93847911,2967.6,2966.7,0.1357747]
[1768985839554,0.93847911,2967.5,2966.7,0.1357747]
[1768985839760,0.93847911,2967.4,2966.7,0.1357747]
[1768985839946,0.93847911,2967.3,2966.7,0.1357747]
[1768985840147,1.81322851,2967.8,2966.7,0.1357747]
[1768985840346,1.98188851,2967.6,2966.6,0.00505825]
[1768985840554,3.26085296,2967.5,2966.6,0.00505825]
[1768985840751,0.93659307,2967.4,2966.6,0.00505825]
[1768985842759,0.93659307,2967.3,2966.6,0.00505825]
[1768985842952,0.93659307,2967.2,2966.6,0.00505825]
[1768985843153,0.93659307,2967.1,2966.6,0.00505825]
[1768985843353,0.93659307,2967.0,2966.6,0.00505825]
[1768985843553,1.98189851,2967.5,2966.6,0.00505825]
[1768985843757,0.93782196,2967.4,2966.6,0.00505825]
[1768985844059,0.93782196,2967.3,2966.6,0.00505825]
[1768985844262,0.93782196,2967.2,2966.6,0.00505825]
[1768985844460,0.93782196,2967.1,2966.6,0.00505825]
[1768985844662,0.93782196,2967.0,2966.6,0.0015147]
[1768985844862,1.98189851,2967.5,2966.6,0.0015147]
[1768985845057,1.28076836,2967.4,2966.6,0.0015147]
[1768985845262,0.93809417,2967.3,2966.6,0.0015147]
[1768985845561,0.93809417,2967.2,2966.6,0.0015147]
[1768985845753,0.93809417,2967.1,2966.7,0.1469083]
[1768985846060,0.93809417,2967.0,2966.7,0.1469083]
[1768985846360,1.98189851,2967.5,2966.7,0.1469083]
[1768985846554,1.28092217,2967.4,2966.7,0.1469083]
[1768985846753,0.93820504,2967.3,2966.7,0.1469083]
[1768985846953,0.93820504,2967.2,2966.7,0.1469083]
[1768985847154,0.93820504,2967.1,2966.7,0.1469083]
[1768985847348,0.93820504,2967.0,2966.7,0.1469083]
[1768985847556,1.98189851,2967.5,2966.6,0.0015147]
[1768985847763,1.28098054,2967.4,2966.6,0.0015147]
[1768985847959,0.93824784,2967.3,2966.6,0.0015147]
[1768985848261,0.93824784,2967.2,2966.6,0.0015147]
[1768985848562,0.93824784,2967.1,2966.6,0.0015147]
[1768985848764,0.93824784,2967.0,2966.6,0.0015147]
[1768985848948,0.93836754,2966.9,2966.6,0.0015147]
[1768985849154,1.81322851,2967.4,2966.6,0.0015147]
[1768985849357,0.93837386,2967.3,2966.6,0.0015147]
[1768985849561,0.93837386,2967.2,2966.6,0.0015147]
[1768985849757,0.93837386,2967.1,2966.6,0.0015147]
[1768985850059,0.93837386,2967.0,2966.6,0.0015147]
[1768985850260,1.98189851,2967.5,2966.6,0.0015147]
[1768985850462,1.2813853,2967.4,2966.6,0.0015147]
[1768985850664,0.93854394,2967.3,2966.6,0.0015147]
[1768985850863,0.93854394,2967.2,2966.6,0.148423]
[1768985851055,0.93854394,2967.1,2966.6,0.148423]
[1768985851254,1.81322851,2967.8,2966.7,0.1469083]
[1768985851557,0.00502922,2967.9,2966.9,1.23886138]
[1768985851757,0.00502922,2967.9,2967.0,0.1469083]
[1768985854568,0.00356519,2968.3,2967.3,0.1469083]
[1768985855659,0.00356519,2968.3,2967.5,1.09195308]
[1768985855861,1.81322851,2968.9,2967.6,0.1469083]
[1768985856066,0.3425218,2968.8,2967.6,0.1469083]
[1768985856268,1.81322851,2968.9,2967.6,0.1469083]
[1768985856465,0.00505825,2968.5,2967.6,0.1469083]
[1768985856868,0.00921092,2968.5,2967.6,0.1469083]
[1768985860862,0.00921092,2968.5,2967.2,0.1469083]
[1768985870576,0.17782092,2968.5,2967.2,0.1469083]
[1768985871074,0.15520795,2968.5,2966.8,0.15014769]
[1768985871292,0.16863,2968.1,2966.8,0.15014769]
[1768985878882,0.16863,2968.1,2967.4,1.0914409]
[1768985880870,0.16863,2968.1,2967.2,1.0914409]
[1768985882286,0.92384042,2968.0,2967.2,1.0914409]
[1768985882581,0.16863,2968.1,2967.4,1.23177253]
[1768985883082,0.00921092,2968.5,2967.4,1.23177253]
[1768985883284,1.26630551,2968.4,2967.4,1.23177253]
[1768985883478,1.26630551,2968.3,2967.4,1.23177253]
[1768985883679,0.92388747,2968.2,2967.4,1.23177253]
[1768985883879,0.92388747,2968.1,2967.4,1.23177253]
[1768985884188,0.00921092,2968.5,2967.4,1.23177253]
[1768985884379,1.26639454,2968.4,2967.4,1.23177253]
[1768985884688,1.26639454,2968.3,2967.4,1.23177253]
[1768985884890,0.92395269,2968.2,2967.4,1.23177253]
[1768985885077,0.92395269,2968.1,2967.4,1.23177253]
[1768985885278,0.00921092,2968.5,2967.4,1.23177253]
[1768985885577,1.26636464,2968.4,2967.4,1.23177253]
[1768985885778,1.26636464,2968.3,2967.4,1.23177253]
[1768985885978,0.92393077,2968.2,2967.4,1.23177253]
[1768985886182,0.92393077,2968.1,2967.4,1.23177253]
[1768985886481,0.17782092,2968.5,2967.4,1.23177253]
[1768985886679,1.26637807,2968.4,2967.4,1.23177253]
[1768985886881,1.26637807,2968.3,2967.4,1.23177253]
[1768985887180,0.92394055,2968.2,2967.4,1.23177253]
[1768985887381,0.17782092,2968.5,2967.4,1.23177253]
[1768985887382,0.92394055,2968.1,2967.4,1.23177253]
[1768985887580,0.17782092,2968.5,2967.4,1.23177253]
[1768985887779,1.43512564,2968.4,2967.4,1.23177253]
[1768985888082,1.43513564,2968.3,2967.4,0.14033163]
[1768985888277,1.26651564,2968.2,2967.4,0.14033163]
[1768985888480,0.92404089,2968.1,2967.4,0.14033163]
[1768985888680,0.92404089,2968.0,2967.4,0.14033163]
[1768985888877,0.16862,2968.3,2967.4,0.14033163]
[1768985889080,1.26666062,2968.2,2967.4,0.14033163]
[1768985889280,0.92414602,2968.1,2967.4,0.14033163]
[1768985889482,0.92414602,2968.0,2967.4,0.14033163]
[1768985889686,0.16862,2968.3,2967.4,0.14033163]
[1768985889883,1.26685802,2968.2,2967.4,0.14033163]
[1768985890085,0.92429017,2968.1,2967.4,0.14033163]
[1768985890281,0.92429017,2968.0,2967.4,0.14033163]
[1768985890485,0.16862,2968.3,2967.4,0.14033163]
[1768985890789,1.26706099,2968.2,2967.4,0.14033163]
[1768985891089,0.92443856,2968.1,2967.4,0.14033163]
[1768985891278,0.92443856,2968.0,2967.4,0.14033163]
[1768985891482,0.16862,2968.3,2967.4,0.14033163]
[1768985891687,1.26713606,2968.2,2967.4,0.14033163]
[1768985891887,0.92449309,2968.1,2967.2,1.0914409]
[1768985892084,0.92449309,2968.0,2967.2,1.0914409]
[1768985892288,0.16862,2968.3,2967.2,1.0914409]
[1768985892491,1.26721478,2968.2,2967.2,1.0914409]
[1768985892687,0.92455055,2968.1,2967.2,1.0914409]
[1768985892881,0.92455055,2968.0,2967.0,1.23177253]
[1768985893087,0.92455055,2967.9,2966.8,1.3204409]
[1768985893287,0.92455055,2967.8,2966.8,1.0914409]
[1768985893588,0.16863,2968.1,2966.8,1.23177253]
[1768985893887,0.92455984,2968.0,2966.8,1.23177253]
[1768985894087,0.92455984,2967.9,2966.8,1.23177253]
[1768985894392,0.92455984,2967.8,2967.0,1.0914409]
[1768985894592,0.16863,2968.1,2967.0,1.0914409]
[1768985894786,0.16866,2967.7,2966.7,0.14033163]
[1768985894992,0.92456661,2967.6,2966.9,0.14033163]
[1768985895192,0.92456661,2967.5,2966.9,0.14033163]
[1768985895388,0.16866,2967.7,2966.9,0.14033163]
[1768985895580,0.92417195,2967.6,2966.9,0.14033163]
[1768985895787,0.92417195,2967.5,2966.9,0.14033163]
[1768985895986,0.16866,2967.7,2967.2,1.23034401]
[1768985896182,0.92420184,2967.6,2967.3,0.13890311]
[1768985896393,0.16866,2967.7,2967.3,0.13890311]
[1768985896593,0.92407886,2967.6,2967.3,0.13890311]
[1768985896891,0.16866,2967.7,2967.3,0.13890311]
[1768985897100,0.92319305,2967.6,2967.3,0.13890311]
[1768985897397,0.16866,2967.7,2967.3,0.13890311]
[1768985897596,0.92312145,2967.6,2967.3,0.13890311]
[1768985897797,0.16866,2967.7,2967.3,0.13890311]
[1768985898097,0.92312983,2967.6,2967.3,0.13890311]
[1768985898288,0.16866,2967.7,2967.3,0.13890311]
[1768985898488,0.92308215,2967.6,2967.3,0.13890311]
[1768985898697,0.16866,2967.7,2967.3,0.13890311]
[1768985898897,0.92308169,2967.6,2967.3,0.13890311]
[1768985899192,0.16866,2967.7,2967.3,0.13890311]
[1768985899498,0.92306931,2967.6,2967.3,0.13890311]
[1768985899697,0.16866,2967.7,2967.3,0.13890311]
[1768985899901,0.92306929,2967.6,2967.3,0.13890311]
[1768985900097,0.16866,2967.7,2967.3,0.13890311]
[1768985900289,0.92318381,2967.6,2967.3,0.13890311]
[1768985900489,0.16866,2967.7,2967.3,0.13890311]
[1768985900693,0.92309443,2967.6,2967.3,0.13890311]
[1768985900989,0.16866,2967.7,2966.8,0.13890311]
[1768985901189,0.92309443,2967.6,2966.8,0.13890311]
[1768985901400,0.16866,2967.7,2966.8,0.13890311]
[1768985901595,0.92304947,2967.6,2966.8,0.13890311]
[1768985901794,0.16866,2967.7,2966.8,0.13890311]
[1768985901993,0.92304944,2967.6,2966.8,0.13890311]
[1768985902194,0.92299775,2967.5,2966.8,0.13890311]
[1768985902395,0.16866,2967.7,2966.8,0.13890311]
[1768985902599,0.92290937,2967.6,2966.8,0.13890311]
[1768985902792,0.92290587,2967.5,2966.8,0.13890311]
[1768985903094,0.16866,2967.7,2966.8,0.13890311]
[1768985903294,1.0914409,2967.5,2966.6,0.0015147]
[1768985904302,0.16866,2967.6,2966.6,0.0015147]
[1768985904901,0.92254642,2967.5,2966.6,0.0015147]
[1768985905102,0.16866,2967.6,2966.6,0.0015147]
[1768985905404,0.92252356,2967.5,2966.6,0.0015147]
[1768985905704,0.16866,2967.6,2966.6,0.0015147]
[1768985905906,0.92247761,2967.5,2966.6,0.0015147]
[1768985906201,0.16866,2967.6,2966.6,0.0015147]
[1768985906501,0.92263994,2967.5,2966.6,0.14041781]
[1768985906702,0.16866,2967.6,2966.6,0.14041781]
[1768985906899,0.92263988,2967.5,2966.6,0.14041781]
[1768985907100,0.16866,2967.6,2966.6,0.14041781]
[1768985907304,0.92262747,2967.5,2966.6,0.14041781]
[1768985907606,0.16866,2967.6,2966.6,0.14041781]
[1768985907904,0.92260607,2967.5,2966.6,0.14041781]
[1768985908105,0.16866,2967.6,2966.6,0.14041781]
[1768985908299,1.81322851,2968.0,2966.6,0.14041781]
[1768985908300,2.18270029,2967.5,2966.6,0.14041781]
[1768985908495,1.0914409,2967.3,2966.6,0.0015147]
[1768985914120,1.2601209,2967.3,2966.6,0.0015147]
[1768985918816,0.92210063,2967.2,2966.6,0.0015147]
[1768985919015,1.2601209,2967.3,2966.6,0.0015147]
[1768985919326,0.92209888,2967.2,2966.6,0.0015147]
[1768985919520,1.2601209,2967.3,2966.6,0.0015147]
[1768985919720,0.92220079,2967.2,2966.6,0.0015147]
[1768985919915,1.2601209,2967.3,2966.6,0.0015147]
[1768985920113,0.92220289,2967.2,2966.6,0.0015147]
[1768985920314,1.2601209,2967.3,2966.6,0.0015147]
[1768985920514,0.92241594,2967.2,2966.6,0.0015147]
[1768985920715,1.2601209,2967.3,2966.6,0.0015147]
[1768985920914,0.92241492,2967.2,2966.6,0.0015147]
[1768985921121,1.2601209,2967.3,2966.6,0.0015147]
[1768985921419,0.92241489,2967.2,2966.6,0.0015147]
[1768985921619,1.2601209,2967.3,2966.6,0.0015147]
[1768985921819,0.92260802,2967.2,2966.6,0.0015147]
[1768985922021,1.2601209,2967.3,2966.6,0.0015147]
[1768985922215,0.92258752,2967.2,2966.6,0.0015147]
[1768985922415,1.2601209,2967.3,2966.6,0.0015147]
[1768985922716,0.92283788,2967.2,2966.6,0.0015147]
[1768985922916,1.2601209,2967.3,2966.6,0.0015147]
[1768985923128,0.92283907,2967.2,2966.6,0.0015147]
[1768985923317,1.2601209,2967.3,2966.6,0.0015147]
[1768985923518,0.92302924,2967.2,2966.6,0.0015147]
[1768985923820,1.0914409,2966.7,2965.7,0.37077171]
[1768985924124,0.92303777,2966.6,2965.7,0.14177171]
[1768985924327,1.0914409,2966.9,2965.7,0.14177171]
[1768985924525,0.92260572,2966.8,2965.7,0.14177171]
[1768985924716,0.92260572,2966.7,2965.7,0.14177171]
[1768985924921,0.00505825,2966.5,2966.0,0.14396136]
[1768985925828,0.00505825,2966.5,2966.0,0.00505825]
[1768985935736,0.00505825,2966.5,2966.0,0.1548322]
[1768985939538,0.16871,2966.7,2966.0,0.1548322]
[1768985940742,1.98190851,2967.3,2966.0,0.1548322]
[1768985940943,1.26363921,2967.2,2966.0,0.1548322]
[1768985941141,0.92160619,2967.1,2966.0,0.1548322]
[1768985941436,0.92160619,2967.0,2966.0,0.1548322]
[1768985941641,0.16868,2967.3,2966.2,0.14970871]
[1768985941841,0.92441725,2967.2,2966.2,0.14970871]
[1768985942032,0.92441725,2967.1,2966.2,0.14970871]
[1768985942234,0.16868,2967.3,2966.2,0.14970871]
[1768985942235,0.92441725,2967.0,2966.2,0.14970871]
[1768985942431,0.16868,2967.3,2966.2,0.14970871]
[1768985942744,0.92449319,2967.2,2966.2,0.14970871]
[1768985942943,0.92449319,2967.1,2966.2,0.14970871]
[1768985943140,0.92449319,2967.0,2966.2,0.14970871]
[1768985943444,0.16868,2967.3,2966.2,0.14970871]
[1768985943641,1.26671529,2967.2,2966.2,0.14970871]
[1768985943941,0.92458352,2967.1,2966.2,0.14970871]
[1768985944142,0.92458352,2967.0,2966.2,0.14970871]
[1768985944440,0.16868,2967.3,2966.2,0.14970871]
[1768985944640,1.26652669,2967.2,2966.2,0.14970871]
[1768985944842,0.92444588,2967.1,2966.2,0.14970871]
[1768985945149,0.92444588,2967.0,2966.2,0.14970871]
[1768985945334,0.16868,2967.3,2966.2,0.14970871]
[1768985945640,1.26664766,2967.2,2966.2,0.14970871]
[1768985945941,0.16868,2967.3,2966.2,0.14970871]
[1768985945942,0.92453395,2967.1,2966.2,0.14970871]
[1768985946141,0.92453395,2967.0,2966.2,0.14970871]
[1768985946330,0.16868,2967.3,2966.2,0.14970871]
[1768985946535,1.26710236,2967.2,2966.2,0.14970871]
[1768985946741,0.92486583,2967.1,2966.2,0.14970871]
[1768985946938,0.92486583,2967.0,2966.2,0.14970871]
[1768985947240,0.16868,2967.3,2966.2,0.14970871]
[1768985947545,1.26728236,2967.2,2966.2,0.14970871]
[1768985947737,0.92499721,2967.1,2966.2,0.14970871]
[1768985947936,0.92499721,2967.0,2966.2,0.14970871]
[1768985948143,0.16868,2967.3,2966.2,0.14970871]
[1768985948442,1.26742322,2967.2,2966.2,0.14970871]